Workbook

Sheet Dati x impresa
C2: Tavola 1 - Reclami inviati dai consumatori alle imprese nel periodo: anno 2022
A3: Click sul pulsante in testa a ciascuna colonna per ordinare i dati in base ai corrispondenti valori. Click su "Reset" per tornare all'ordine alfabetico | C3: Numero reclami | G3: Numero reclami per milione di premi (2) | K3: Numero reclami/ 10.000 contratti (Tot.Vita e Danni)
A4: Tipologia imprese: - Italiane - Estere (1) | B4: Denominazione impresa
C5: Totale vita e danni | D5: Rami Vita | E5: Rami Danni (escl rc auto) | F5: Rc auto | G5: ="Totale vita e danni" & CHAR(10) & "Media:" & CHAR(10) & " It: " & TEXT(G155,"#0,00") & CHAR(10) & " E: " & TEXT(G156,"#0,00") -> Totale vita e danni Media: It: 1,67 E: 6,01 | H5: ="Rami Vita" & CHAR(10) & CHAR(10) & "Media:" & CHAR(10) & " It: " & TEXT(H155,"#0,00") & CHAR(10) & " E: " & TEXT(H156,"#0,00") -> Rami Vita Media: It: 0,16 E: 2,04 | I5: ="Rami Danni" & CHAR(10) & "(escl rc auto)" & CHAR(10) & "Media:" & CHAR(10) & " It: " & TEXT(I155,"#0,00") & CHAR(10) & " E: " & TEXT(I156,"#0,00") -> Rami Danni (escl rc auto) Media: It: 1,85 E: 4,52 | J5: ="Rc auto" & CHAR(10) & CHAR(10) & "Media:" & CHAR(10) & " It: " & TEXT(J155,"#0,00") & CHAR(10) & " E: " & TEXT(J156,"#0,00") -> Rc auto Media: It: 3,34 E: 10,46 | K5: ="Totale vita e danni" & CHAR(10) & "Media:" & CHAR(10) & " It: " & TEXT(K155,"#0,00") & CHAR(10) & " E: " & TEXT(K156,"#0,00") -> Totale vita e danni Media: It: 4,57 E: 5,93
A6: Impresa vigilata | B6: ALLEANZA ASSICURAZIONI S.P.A. | C6: 1415 | D6: 1299 | E6: 116 | F6: 0 | G6: 0.22 | H6: 0.21 | I6: 0.81 | K6: 4.36
A7: Impresa vigilata | B7: ALLIANZ DIRECT SOCIETA PER AZIONI | C7: 3789 | D7: 0 | E7: 501 | F7: 3288 | G7: 6.69 | I7: 3.24 | J7: 7.98 | K7: 21.52
A8: Impresa vigilata | B8: ALLIANZ SOCIETA' PER AZIONI | C8: 4339 | D8: 367 | E8: 1763 | F8: 2209 | G8: 0.7 | H8: 0.14 | I8: 0.84 | J8: 1.41 | K8: 3.43
A9: Impresa vigilata | B9: ALLIANZ VIVA S.P.A. | C9: 495 | D9: 0 | E9: 173 | F9: 322 | G9: 1.13 | I9: 0.58 | J9: 2.3 | K9: 4.24
A10: Impresa vigilata | B10: AMTRUST ASSICURAZIONI S.P.A. | C10: 81 | D10: 0 | E10: 81 | F10: 0 | G10: 0.31 | I10: 0.31 | K10: 3.45
A11: Impresa vigilata | B11: ARCA ASSICURAZIONI S.P.A. | C11: 514 | D11: 0 | E11: 366 | F11: 148 | G11: 2.09 | I11: 1.75 | J11: 4.13 | K11: 4.87
A12: Impresa vigilata | B12: ARCA VITA S.P.A. | C12: 150 | D12: 150 | E12: 0 | F12: 0 | G12: 0.08 | H12: 0.08 | K12: 3.03
A13: Impresa vigilata | B13: ARGOGLOBAL ASSICURAZIONI S.P.A. | C13: 14 | D13: 0 | E13: 14 | F13: 0 | G13: 28.37 | I13: 28.37 | K13: 2.58
A14: Impresa vigilata | B14: ASSICURATRICE MILANESE SPA - COMPAGNIA DI ASSICURAZIONI | C14: 105 | D14: 0 | E14: 76 | F14: 29 | G14: 1.37 | I14: 1.17 | J14: 2.52 | K14: 1.75
A15: Impresa vigilata | B15: ASSICURATRICE VAL PIAVE S.P.A. | C15: 22 | D15: 0 | E15: 7 | F15: 15 | G15: 0.59 | I15: 0.36 | J15: 0.85 | K15: 1.93
A16: Impresa vigilata | B16: ASSICURAZIONI GENERALI SOCIETA' PER AZIONI | C16: 8 | D16: 0 | E16: 8 | F16: 0 | G16: 0 | H16: 0 | I16: 0.01 | J16: 0 | K16: 1.6
A17: Impresa vigilata | B17: ASSICURAZIONI RISCHI AGRICOLI VMG 1857 S.P.A. | C17: 1 | D17: 0 | E17: 1 | F17: 0 | G17: 0.01 | I17: 0.01 | K17: N.A.(4)
A18: Impresa vigilata | B18: ASSIMOCO S.P.A. COMPAGNIA DI ASSICURAZIONI E RIASSICURAZIONI - MOVIMENTO COOPERATIVO | C18: 139 | E18: 53 | F18: 86 | G18: 0.44 | I18: 0.24 | J18: 0.94 | K18: 1.21
A19: Impresa vigilata | B19: ASSIMOCO VITA S.P.A. COMPAGNIA DI ASSICURAZIONE SULLA VITA | C19: 19 | D19: 19 | G19: 0.03 | H19: 0.03 | K19: 0.48
A20: Impresa vigilata | B20: ATHORA ITALIA S.P.A. (già Amissima Vita S.p.A.) | C20: 24 | D20: 24 | E20: 0 | F20: 0 | G20: 0.03 | H20: 0.03 | K20: 1.26
A21: Impresa vigilata | B21: AXA ASSICURAZIONI S.P.A. | C21: 2014 | D21: 136 | E21: 510 | F21: 1368 | G21: 0.82 | H21: 0.23 | I21: 0.44 | J21: 2.02 | K21: 3.59
A22: Impresa vigilata | B22: AXA MPS ASSICURAZIONI DANNI SOCIETA' PER AZIONI | C22: 280 | D22: 0 | E22: 177 | F22: 103 | G22: 1.77 | I22: 1.39 | J22: 3.33 | K22: 1.28
A23: Impresa vigilata | B23: AXA MPS ASSICURAZIONI VITA SOCIETA' PER AZIONI | C23: 438 | D23: 438 | E23: 0 | F23: 0 | G23: 0.23 | H23: 0.23 | K23: 3.44
A24: Impresa vigilata | B24: BANCO BPM ASSICURAZIONI S.P.A (già Bipiemme Assicurazioni S.p.A.) | C24: 87 | D24: 0 | E24: 74 | F24: 13 | G24: 2.97 | I24: 2.69 | J24: 7.3 | K24: 3.51
A25: Impresa vigilata | B25: BANCO BPM VITA S.P.A. (già Bipiemme Vita S.p.A.) | C25: 131 | D25: 128 | E25: 3 | F25: 0 | G25: 0.16 | H25: 0.16 | I25: 0.66 | K25: 4.63
A26: Impresa vigilata | B26: BCC ASSICURAZIONI S.P.A. | C26: 68 | D26: 0 | E26: 48 | F26: 20 | G26: 1.22 | I26: 0.96 | J26: 3.5 | K26: 2.55
A27: Impresa vigilata | B27: BCC VITA S.P.A. COMPAGNIA DI ASSICURAZIONI VITA | C27: 62 | D27: 62 | E27: 0 | F27: 0 | G27: 0.11 | H27: 0.11 | K27: 2.34
A28: Impresa vigilata | B28: BENE ASSICURAZIONI S.P.A. SOCIETA BENEFIT | C28: 271 | D28: 0 | E28: 59 | F28: 212 | G28: 1.59 | I28: 0.73 | J28: 2.36 | K28: 3.48
A29: Impresa vigilata | B29: BERKSHIRE HATHAWAY INTERNATIONAL INSURANCE LIMITED | C29: 10 | D29: 0 | E29: 10 | F29: 0 | G29: 0.31 | I29: 0.31 | K29: 5.44
A30: Impresa vigilata | B30: BIM VITA S.P.A. | C30: 2 | D30: 2 | E30: 0 | F30: 0 | G30: 0.06 | H30: 0.06 | K30: 4.04
A31: Impresa vigilata | B31: BNP PARIBAS CARDIF VITA COMPAGNIA DI ASSICURAZIONE E RIASSICURAZIONE S.P.A. | C31: 658 | D31: 630 | E31: 28 | F31: 0 | G31: 0.19 | H31: 0.18 | I31: N.A.(4) | K31: 8.91
A32: Impresa vigilata | B32: CF ASSICURAZIONI S.P.A. - COMPAGNIA DI ASSICURAZIONE PER IL CREDITO E LA FAMIGLIA | C32: 10 | D32: 0 | E32: 10 | F32: 0 | G32: 0.23 | I32: 0.23 | K32: 0.49
A33: Impresa vigilata | B33: CF LIFE COMPAGNIA DI ASSICURAZIONI VITA S.P.A. | C33: 3 | D33: 3 | E33: 0 | F33: 0 | G33: 0.1 | H33: 0.1 | K33: 0.34
A34: Impresa vigilata | B34: CNP UNICREDIT VITA S.P.A. | C34: 458 | D34: 458 | E34: 0 | F34: 0 | G34: 0.14 | H34: 0.14 | K34: 5.06
A35: Impresa vigilata | B35: CNP VITA ASSICURA S.P.A. | C35: 142 | D35: 142 | E35: 0 | F35: 0 | G35: 0.05 | H35: 0.05 | K35: 5.18
A36: Impresa vigilata | B36: CNP VITA ASSICURAZIONE S.P.A. | C36: 59 | D36: 59 | E36: 0 | F36: 0 | G36: 0.04 | H36: 0.04 | K36: 0.44
A37: Impresa vigilata | B37: COMPAGNIA ASSICURATRICE LINEAR S.P.A. | C37: 1240 | D37: 0 | E37: 17 | F37: 1223 | G37: 6.44 | I37: 0.32 | J37: 8.73 | K37: 17.8
A38: Impresa vigilata | B38: COMPAGNIA ITALIANA DI PREVIDENZA, ASSICURAZIONI E RIASSICURAZIONI S.P.A. | C38: 1288 | D38: 393 | E38: 367 | F38: 528 | G38: 0.78 | H38: 0.45 | I38: 0.74 | J38: 1.81 | K38: 5.15
A39: Impresa vigilata | B39: CREDEMASSICURAZIONI S.P.A. | C39: 154 | D39: 0 | E39: 154 | F39: 0 | G39: 2.97 | I39: 2.97 | K39: 5.28
A40: Impresa vigilata | B40: CREDEMVITA S.P.A. | C40: 78 | D40: 78 | E40: 0 | F40: 0 | G40: 0.08 | H40: 0.08 | K40: 3.76
A41: Impresa vigilata | B41: CREDIT AGRICOLE ASSICURAZIONI S.P.A. | C41: 260 | D41: 0 | E41: 168 | F41: 92 | G41: 2.08 | I41: 1.57 | J41: 5.17 | K41: 4.08
A42: Impresa vigilata | B42: CREDIT AGRICOLE VITA S.P.A. | C42: 48 | D42: 48 | G42: 0.01 | H42: 0.01 | K42: 0.98
A43: Impresa vigilata | B43: D.A.S. DIFESA AUTOMOBILISTICA SINISTRI - S.P.A. DI ASSICURAZIONE | C43: 71 | D43: 0 | E43: 71 | F43: 0 | G43: 1.23 | I43: 1.23 | K43: 2.2
A44: Impresa vigilata | B44: EUROP ASSISTANCE ITALIA S.P.A. | C44: 1970 | D44: 0 | E44: 1970 | F44: 0 | G44: 8.22 | I44: 8.22 | K44: 3.68
A45: Impresa vigilata | B45: EUROVITA S.P.A. | C45: 260 | D45: 260 | E45: 0 | F45: 0 | G45: 0.22 | H45: 0.22 | K45: 7.72
A46: Impresa vigilata | B46: FIDEURAM VITA S.P.A. | C46: 208 | D46: 208 | E46: 0 | F46: 0 | G46: 0.06 | H46: 0.06 | K46: 5.23
A47: Impresa vigilata | B47: GENERALI ITALIA S.P.A. | C47: 4815 | D47: 733 | E47: 2141 | F47: 1941 | G47: 0.34 | H47: 0.09 | I47: 0.52 | J47: 1.57 | K47: 2.79
A48: Impresa vigilata | B48: GENERTEL S.P.A. | C48: 3428 | D48: 0 | E48: 680 | F48: 2748 | G48: 6.57 | I48: 2.33 | J48: 11.98 | K48: 28.6
A49: Impresa vigilata | B49: GENERTELLIFE S.P.A. | C49: 799 | D49: 799 | E49: 0 | F49: 0 | G49: 0.31 | H49: 0.31 | K49: 13.8
A50: Impresa vigilata | B50: GLOBAL ASSISTANCE COMPAGNIA DI ASSICURAZIONI E RIASSICURAZIONI S.P.A. | C50: 34 | D50: 0 | E50: 34 | F50: 0 | G50: 1.74 | I50: 1.74 | K50: 1.47
A51: Impresa vigilata | B51: GROUPAMA ASSICURAZIONI SOCIETA' PER AZIONI | C51: 1384 | D51: 17 | E51: 521 | F51: 846 | G51: 1.16 | H51: 0.07 | I51: 0.99 | J51: 2.09 | K51: 5.89
A52: Impresa vigilata | B52: HDI ASSICURAZIONI S.P.A. | C52: 680 | D52: 65 | E52: 186 | F52: 429 | G52: 0.46 | H52: 0.06 | I52: 0.92 | J52: 1.74 | K52: 4.64
A53: Impresa vigilata | B53: HDI ITALIA S.P.A. | C53: 440 | D53: 0 | E53: 183 | F53: 257 | G53: 1.79 | I53: 1.38 | J53: 2.25 | K53: 4.9
A54: Impresa vigilata | B54: HELVETIA COMPAGNIA SVIZZERA D'ASSICURAZIONI S.A. | C54: 369 | E54: 161 | F54: 208 | G54: 0.83 | I54: 0.52 | J54: 1.59 | K54: 4.21
A55: Impresa vigilata | B55: HELVETIA ITALIA ASSICURAZIONI S.P.A. | C55: 95 | D55: 0 | E55: 46 | F55: 49 | G55: 0.77 | I55: 0.44 | J55: 2.39 | K55: 1.52
A56: Impresa vigilata | B56: HELVETIA VITA COMPAGNIA ITALO-SVIZZERA DI ASSICURAZIONI SULLA VITA S.P.A. | C56: 50 | D56: 50 | E56: 0 | F56: 0 | G56: 0.13 | H56: 0.13 | K56: 2.81
A57: Impresa vigilata | B57: IMA ITALIA ASSISTANCE S.P.A. | C57: 23 | E57: 23 | F57: 0 | G57: 1.31 | I57: 1.31 | K57: 0.21
A58: Impresa vigilata | B58: INCONTRA ASSICURAZIONI SPA | C58: 203 | D58: 0 | E58: 203 | F58: 0 | G58: 1.31 | I58: 1.31 | J58: 0 | K58: 3.58
A59: Impresa vigilata | B59: INTESA SANPAOLO ASSICURA S.P.A. | C59: 2078 | D59: 0 | E59: 1791 | F59: 287 | G59: 2.27 | I59: 2.13 | J59: 3.86 | K59: 5.19
A60: Impresa vigilata | B60: INTESA SANPAOLO RBM SALUTE S.P.A. | C60: 4106 | D60: 0 | E60: 4106 | F60: 0 | G60: 7.88 | I60: 7.88 | K60: 12.84
A61: Impresa vigilata | B61: INTESA SANPAOLO VITA S.P.A. | C61: 2219 | D61: 2217 | E61: 2 | F61: 0 | G61: 0.22 | H61: 0.22 | I61: 4.48 | K61: 5.9
A62: Impresa vigilata | B62: ITAS - ISTITUTO TRENTINO-ALTO ADIGE PER ASSICURAZIONI SOCIETA' MUTUA DI ASSICURAZIONI | C62: 540 | D62: 0 | E62: 238 | F62: 302 | G62: 0.72 | I62: 0.46 | J62: 1.3 | K62: 3.86
A63: Impresa vigilata | B63: ITAS VITA S.P.A. | C63: 44 | D63: 44 | E63: 0 | F63: 0 | G63: 0.12 | H63: 0.12 | K63: 1.37
A64: Impresa vigilata | B64: LE ASSICURAZIONI DI ROMA - MUTUA ASSICURATRICE ROMANA | C64: 30 | D64: 0 | E64: 17 | F64: 13 | G64: 0.5 | I64: 0.41 | J64: 0.72 | K64: 1.88
A65: Impresa vigilata | B65: MEDIOLANUM ASSICURAZIONI S.P.A. | C65: 92 | D65: 0 | E65: 92 | F65: 0 | G65: 0.76 | I65: 0.76 | K65: 2.62
A66: Impresa vigilata | B66: MEDIOLANUM VITA S.P.A | C66: 400 | D66: 400 | E66: 0 | F66: 0 | G66: 0.09 | H66: 0.09 | K66: 5.33
A67: Impresa vigilata | B67: NET INSURANCE LIFE S.P.A. | C67: 1 | D67: 1 | E67: 0 | F67: 0 | G67: 0.01 | H67: 0.01 | K67: 0.02
A68: Impresa vigilata | B68: NET INSURANCE S.P.A. | C68: 15 | D68: 0 | E68: 15 | F68: 0 | G68: 0.16 | I68: 0.16 | K68: 0.3
A69: Impresa vigilata | B69: NOBIS COMPAGNIA DI ASSICURAZIONI S.P.A. | C69: 544 | D69: 0 | E69: 274 | F69: 270 | G69: 1.49 | I69: 0.95 | J69: 3.62 | K69: 1.75
A70: Impresa vigilata | B70: NOBIS VITA S.P.A. | C70: 4 | D70: 4 | E70: 0 | F70: 0 | G70: 0.05 | H70: 0.05 | K70: 2.45
A71: Impresa vigilata | B71: POSTE ASSICURA S.P.A. | C71: 2624 | D71: 0 | E71: 2624 | F71: 0 | G71: 6.69 | I71: 6.69 | K71: 4.53
A72: Impresa vigilata | B72: POSTE VITA S.P.A. | C72: 2765 | D72: 2765 | E72: 0 | F72: 0 | G72: 0.16 | H72: 0.16 | K72: 3.68
A73: Impresa vigilata | B73: QUIXA ASSICURAZIONI S.P.A. | C73: 580 | D73: 0 | E73: 31 | F73: 549 | G73: 5.91 | I73: 1.94 | J73: 6.67 | K73: 13.86
A74: Impresa vigilata | B74: REVO INSURANCE S.P.A. (già Elba S.p.A.) | C74: 11 | D74: 0 | E74: 11 | F74: 0 | G74: 0.08 | I74: 0.08 | K74: 0.92
A75: Impresa vigilata | B75: S2C S.P.A. COMPAGNIA DI ASSICURAZIONI DI CREDITI E CAUZIONI | C75: 2 | E75: 2 | F75: 0 | G75: 0.05 | I75: 0.05 | K75: 1.19
A76: Impresa vigilata | B76: SACE BT S.P.A. | C76: 12 | D76: 0 | E76: 12 | F76: 0 | G76: 0.08 | I76: 0.08 | K76: 2.21
A77: Impresa vigilata | B77: SARA ASSICURAZIONI S.P.A. ASSICURATRICE UFFICIALE DELL'AUTOMOBILE CLUB D'ITALIA | C77: 997 | D77: 0 | E77: 355 | F77: 642 | G77: 1.56 | I77: 1.15 | J77: 1.93 | K77: 2.85
A78: Impresa vigilata | B78: SARA VITA S.P.A. | C78: 7 | D78: 7 | E78: 0 | F78: 0 | G78: 0.03 | H78: 0.03 | K78: 1.4
A79: Impresa vigilata | B79: SCHWEIZERISCHE HAGEL-VERSICHERUNGS-GESELLSHAFT - SOCIETA' SVIZZERA DI | C79: 0 | D79: 0 | E79: 0 | F79: 0 | G79: 0 | I79: 0
A80: Impresa vigilata | B80: SIAT SOCIETA' ITALIANA ASSICURAZIONI E RIASSICURAZIONI PER AZIONI | C80: 15 | D80: 0 | E80: 15 | F80: 0 | G80: 0.1 | I80: 0.1 | J80: 0 | K80: 12.2
A81: Impresa vigilata | B81: SLP - ASSICURAZIONI SPESE LEGALI PERITALI E RISCHI ACCESSORI S.P.A. | C81: 3 | D81: 0 | E81: 3 | F81: 0 | G81: 1.8 | I81: 1.8 | K81: 0.84
A82: Impresa vigilata | B82: SOCIETA' CATTOLICA DI ASSICURAZIONE SOCIETA' PER AZIONI | C82: 2926 | D82: 267 | E82: 819 | F82: 1840 | G82: 1.38 | H82: 0.64 | I82: 0.78 | J82: 2.84 | K82: 5.96
A83: Impresa vigilata | B83: SOCIETA' REALE MUTUA DI ASSICURAZIONI | C83: 2063 | D83: 52 | E83: 1238 | F83: 773 | G83: 0.81 | H83: 0.06 | I83: 0.96 | J83: 1.77 | K83: 3.63
A84: Impresa vigilata | B84: TUA ASSICURAZIONI SOCIETA' PER AZIONI | C84: 765 | D84: 0 | E84: 163 | F84: 602 | G84: 2.73 | I84: 1.11 | J84: 4.5 | K84: 9.71
A85: Impresa vigilata | B85: TUTELA LEGALE S.P.A. | C85: 5 | D85: 0 | E85: 5 | F85: 0 | G85: 0.32 | I85: 0.32 | K85: 0.35
A86: Impresa vigilata | B86: UCA - ASSICURAZIONE SPESE LEGALI E PERITALI S.P.A. | C86: 10 | D86: 0 | E86: 10 | F86: 0 | G86: 0.23 | I86: 0.23 | K86: 0.19
A87: Impresa vigilata | B87: UNICREDIT ALLIANZ ASSICURAZIONI S.P.A. | C87: 520 | D87: 0 | E87: 402 | F87: 118 | G87: 2.34 | I87: 2.03 | J87: 4.93 | K87: 2.9
A88: Impresa vigilata | B88: UNICREDIT ALLIANZ VITA S.P.A. | C88: 425 | D88: 425 | E88: 0 | F88: 0 | G88: 0.09 | H88: 0.09 | K88: 4.11
A89: Impresa vigilata | B89: UNIPOLSAI ASSICURAZIONI S.P.A. | C89: 12219 | D89: 409 | E89: 4551 | F89: 7259 | G89: 1.19 | H89: 0.12 | I89: 1.11 | J89: 2.62 | K89: 3.48
A90: Impresa vigilata | B90: UNISALUTE S.P.A. | C90: 3004 | D90: 0 | E90: 3004 | F90: 0 | G90: 5.23 | I90: 5.23 | K90: 4.04
A91: Impresa vigilata | B91: VERA ASSICURAZIONI S.P.A. | C91: 259 | D91: 0 | E91: 249 | F91: 10 | G91: 2.06 | I91: 2.05 | J91: 2.33 | K91: 3.78
A92: Impresa vigilata | B92: VERA PROTEZIONE S.P.A. | C92: 140 | D92: 140 | E92: 0 | F92: 0 | G92: 1.23 | H92: 1.23 | K92: 3.4
A93: Impresa vigilata | B93: VERA VITA S.P.A. | C93: 123 | D93: 123 | E93: 0 | F93: 0 | G93: 0.13 | H93: 0.13 | I93: 0 | K93: 3.91
A94: Impresa vigilata | B94: VERTI ASSICURAZIONI S.P.A. | C94: 1439 | D94: 0 | E94: 233 | F94: 1206 | G94: 7.21 | I94: 3.51 | J94: 9.04 | K94: 15.89
A95: Impresa vigilata | B95: VITTORIA ASSICURAZIONI S.P.A. | C95: 2541 | D95: 81 | E95: 787 | F95: 1673 | G95: 1.51 | H95: 0.23 | I95: 1.24 | J95: 2.42 | K95: 4.9
A96: Impresa vigilata | B96: ZURICH INSURANCE COMPANY LTD | C96: 636 | E96: 165 | F96: 471 | G96: 5.17 | I96: 2.89 | J96: 7.16 | K96: 14.59
A97: Impresa vigilata | B97: ZURICH INVESTMENTS LIFE S.P.A. | C97: 251 | D97: 251 | G97: 0.16 | H97: 0.16 | K97: 2.7
A98: Impresa estera | B98: ADMIRAL EUROPE COMPAÑIA DE SEGUROS S.A. | C98: 1396 | D98: 0 | E98: 134 | F98: 1262 | G98: 5.26 | I98: 1.93 | J98: 6.45 | K98: 8.51
A99: Impresa estera | B99: ADRIATIC OSIGURANJE D.D. | C99: 1571 | D99: 0 | E99: 5 | F99: 1566 | G99: 23.41 | I99: 1.42 | J99: 24.62 | K99: NA(3)
A100: Impresa estera | B100: AIG EUROPE S.A. | C100: 333 | D100: 0 | E100: 295 | F100: 38 | G100: 0.6 | I100: 0.54 | J100: 3.66 | K100: 0.5
A101: Impresa estera | B101: AIG EUROPE S.A. (LPS) | C101: 112 | D101: 0 | E101: 112 | F101: 0 | G101: NA(3) | I101: NA(3) | K101: N.A.(4)
A102: Impresa estera | B102: AIOI NISSAY DOWA INSURANCE COMPANY OF EUROPE SE | C102: 105 | D102: 0 | E102: 51 | F102: 54 | G102: 1.09 | I102: 0.56 | J102: 9.11 | K102: 6.92
A103: Impresa estera | B103: ALLIANZ GLOBAL LIFE DAC | C103: 24 | D103: 24 | E103: 0 | F103: 0 | G103: 0.04 | H103: 0.04 | K103: 2.39
A104: Impresa estera | B104: AMTRUST INTERNATIONAL UNDERWRITERS DAC | C104: 410 | D104: 0 | E104: 409 | F104: 1 | G104: 9.73 | I104: 9.71 | K104: 26.42
A105: Impresa estera | B105: ARAG SE RAPPRESENTANZA GENERALE E DIREZIONE PER L'ITALIA | C105: 59 | D105: 0 | E105: 59 | F105: 0 | G105: 1.4 | I105: 1.4 | K105: 0.99
A106: Impresa estera | B106: ASSURANT EUROPE INSURANCE NV | C106: 90 | D106: 0 | E106: 90 | F106: 0 | G106: 7.56 | I106: 7.56 | K106: 0.55
A107: Impresa estera | B107: AWP P&C S.A. | C107: 416 | D107: 0 | E107: 416 | F107: 0 | G107: 8.51 | I107: 8.51 | K107: 4.29
A108: Impresa estera | B108: AWP P&C S.A. (LPS) | C108: 98 | D108: 0 | E108: 98 | F108: 0 | G108: 42.46 | I108: 42.46 | K108: 0.14
A109: Impresa estera | B109: AXA FRANCE IARD | C109: 9 | D109: 0 | E109: 9 | F109: 0 | G109: 0.25 | I109: 0.25 | K109: 0.38
A110: Impresa estera | B110: AXA MPS FINANCIAL DAC | C110: 44 | D110: 44 | E110: 0 | F110: 0 | G110: 0.06 | H110: 0.06 | K110: 1.73
A111: Impresa estera | B111: BUPA GLOBAL DAC | C111: 59 | D111: 0 | E111: 59 | F111: 0 | G111: 0.02 | I111: 0.02 | K111: N.A.(4)
A112: Impresa estera | B112: CACI LIFE DAC | C112: 193 | D112: 193 | E112: 0 | F112: 0 | G112: 1.52 | H112: 1.52 | K112: 6.12
A113: Impresa estera | B113: CACI LIFE DAC (LPS) | C113: 336 | D113: 336 | E113: 0 | F113: 0 | G113: 4.85 | H113: 4.85 | K113: 6.1
A114: Impresa estera | B114: CACI NON LIFE DAC | C114: 90 | D114: 0 | E114: 90 | F114: 0 | G114: 2.53 | I114: 2.53 | K114: 3.16
A115: Impresa estera | B115: CACI NON LIFE DAC (LPS) | C115: 230 | D115: 0 | E115: 230 | F115: 0 | G115: 3.14 | I115: 3.14 | K115: 4.22
A116: Impresa estera | B116: CARDIF ASSURANCE VIE S.A. | C116: 657 | D116: 657 | E116: 0 | F116: 0 | G116: 2.76 | H116: 2.76 | K116: 3.65
A117: Impresa estera | B117: CARDIF ASSURANCES RISQUES DIVERS S.A. | C117: 1052 | D117: 0 | E117: 1052 | F117: 0 | G117: 7.38 | I117: 7.38 | K117: 5.26
A118: Impresa estera | B118: CHUBB EUROPEAN GROUP SE | C118: 183 | D118: 0 | E118: 182 | F118: 1 | G118: 0.61 | I118: 0.61 | J118: 0.9 | K118: 0.26
A119: Impresa estera | B119: CNP ASSURANCES S.A. | C119: 30 | D119: 11 | E119: 19 | F119: 0 | G119: 0.73 | H119: 0.36 | I119: 1.76 | K119: 2.61
A120: Impresa estera | B120: CNP SANTANDER INSURANCE EUROPE DESIGNATED ACTIVITY COMPANY | C120: 24 | D120: 0 | E120: 24 | F120: 0 | G120: 1.1 | I120: 1.1 | K120: 1.08
A121: Impresa estera | B121: CNP SANTANDER INSURANCE LIFE DESIGNATED ACTIVITY COMPANY | C121: 21 | D121: 21 | E121: 0 | F121: 0 | G121: 0.94 | H121: 0.94 | K121: 1.08
A122: Impresa estera | B122: COLLINSON INSURANCE EUROPE LTD | C122: 308 | D122: 0 | E122: 308 | F122: 0 | G122: 24.61 | I122: 24.61 | K122: 13.19
A123: Impresa estera | B123: DARAG DEUTSCHLAND AG | C123: 35 | D123: 0 | E123: 10 | F123: 25 | G123: 3.16 | I123: 0.9 | K123: 39.63
A124: Impresa estera | B124: ERGO REISEVERSICHERUNG AG | C124: 403 | D124: 0 | E124: 403 | F124: 0 | G124: 27.51 | I124: 27.51 | K124: 1.27
A125: Impresa estera | B125: EURO INSURANCES DAC | C125: 16 | D125: 0 | E125: 0 | F125: 16 | G125: 6.24 | I125: 0 | K125: 1.08
A126: Impresa estera | B126: EUROHERC OSIGURANJE D.D. | C126: 267 | D126: 0 | E126: 0 | F126: 267 | G126: 15.65 | I126: 0 | J126: 15.68 | K126: NA(3)
A127: Impresa estera | B127: EUROP ASSISTANCE SA | C127: 381 | D127: 0 | E127: 381 | F127: 0 | G127: NA(3) | I127: NA(3) | K127: 13.97
A128: Impresa estera | B128: FWU LIFE INSURANCE LUX S.A. | C128: 78 | D128: 78 | E128: 0 | F128: 0 | G128: 0.62 | H128: 0.62 | K128: 8.09
A129: Impresa estera | B129: GAMALIFE COMPANHIA DE SEGUROS DE VIDA, SA | C129: 53 | D129: 53 | G129: 1.05 | H129: 1.05 | K129: 3.12
A130: Impresa estera | B130: GREAT LAKES INSURANCE SE | C130: 1998 | D130: 0 | E130: 138 | F130: 1860 | G130: 5.49 | I130: 1.05 | J130: 7.98 | K130: 18.07
A131: Impresa estera | B131: GREENVAL INSURANCE DAC | C131: 45 | D131: 0 | E131: 0 | F131: 45 | G131: 1.32 | I131: 0 | J131: 1.63 | K131: 1.47
A132: Impresa estera | B132: HANSARD EUROPE DAC (run off) | C132: 45 | D132: 45 | E132: 0 | F132: 0
A133: Impresa estera | B133: INSURANCE JSC DALLBOGG: LIFE AND HEALTH | C133: 996 | D133: 0 | E133: 0 | F133: 996 | G133: 44.32 | I133: 0 | J133: 47.15 | K133: NA(3)
A134: Impresa estera | B134: INTER PARTNER ASSISTANCE SA | C134: 187 | D134: 0 | E134: 187 | F134: 0 | G134: 4.3 | I134: 4.3 | K134: 0.53
A135: Impresa estera | B135: INTESA SANPAOLO LIFE DESIGNATED ACTIVITY COMPANY | C135: 576 | D135: 576 | E135: 0 | F135: 0 | G135: 0.2 | H135: 0.2 | K135: 8.95
A136: Impresa estera | B136: IPTIQ EMEA P&C SA | C136: 1162 | D136: 0 | E136: 123 | F136: 1039 | G136: 4.69 | I136: 1.59 | J136: 6.1 | K136: 6.73
A137: Impresa estera | B137: IPTIQ EMEA P&C SA (LPS) | C137: 1092 | D137: 0 | E137: 85 | F137: 1007 | G137: 9.3 | I137: 2.61 | J137: 11.86 | K137: 9.91
A138: Impresa estera | B138: LLOYD'S INSURANCE COMPANY SA | C138: 129 | D138: 0 | E138: 129 | F138: 0 | G138: 0.42 | I138: 0.42 | K138: 3.63
A139: Impresa estera | B139: MAPFRE ASISTENCIA, COMPA?IA INTERNATIONAL DE SEGUROS Y REASEGUROS, S.A. | C139: 18 | D139: 0 | E139: 18 | F139: 0 | G139: 0.91 | I139: 0.91 | K139: 3.49
A140: Impresa estera | B140: MEDIOLANUM INTERNATIONAL LIFE DAC | C140: 125 | D140: 125 | E140: 0 | F140: 0 | G140: 2.62 | H140: 2.62 | K140: 16.95
A141: Impresa estera | B141: METLIFE EUROPE DESIGNATED ACTIVITY COMPANY | C141: 1244 | D141: 630 | E141: 614 | F141: 0 | G141: 5.41 | H141: 4.48 | I141: 6.89 | K141: 9.42
A142: Impresa estera | B142: METLIFE EUROPE INSURANCE DESIGNATED ACTIVITY COMPANY | C142: 17 | D142: 0 | E142: 17 | F142: 0 | G142: 0.94 | I142: 0.94 | K142: 2.08
A143: Impresa estera | B143: MMA IARD SA | C143: 49 | D143: 0 | E143: 49 | F143: 0 | G143: 0.23 | I143: 0.23 | K143: 0.86
A144: Impresa estera | B144: MONUMENT ASSURANCE LUXEMBOURG S.A. | C144: 11 | D144: 11 | E144: 0 | F144: 0 | G144: 1.54 | H144: 1.54 | K144: 5.52
A145: Impresa estera | B145: NOVIS INSURANCE COMPANY, NOVIS VERSICHERUNGSGESELLSCHAFT, NOVIS COMPAGNIA DI ASSICURAZIONI, NOVIS POIST'OVNA A.S. | C145: 318 | D145: 318 | E145: 0 | F145: 0 | G145: 11.22 | H145: 11.22 | K145: NA(3)
A146: Impresa estera | B146: SOGECAP | C146: 16 | D146: 16 | E146: 0 | F146: 0 | G146: 0.3 | H146: 0.3 | K146: 0.87
A147: Impresa estera | B147: SOGESSUR S.A. | C147: 568 | D147: 0 | E147: 43 | F147: 525 | G147: 4.68 | I147: 1.04 | J147: 6.56 | K147: 7.88
A148: Impresa estera | B148: TRAVELJIGSAW INSURANCE LTD | C148: 22 | D148: 0 | E148: 22 | F148: 0 | G148: 0 | I148: 0 | K148: N.A.(4)
A149: Impresa estera | B149: VERA FINANCIAL DESIGNATED ACTIVITY COMPANY | C149: 24 | D149: 24 | E149: 0 | F149: 0 | G149: 0.05 | H149: 0.05 | K149: 3.46
A150: Impresa estera | B150: WAKAM | C150: 317 | D150: 0 | E150: 295 | F150: 22 | G150: 2.94 | I150: 2.92 | J150: 3.28 | K150: 2.33
A151: Impresa estera | B151: ZURICH INSURANCE PLC | C151: 814 | E151: 260 | F151: 554 | G151: 0.6 | I151: 0.27 | J151: 1.44 | K151: 3.93
C154: Totale vita e danni | D154: Rami Vita | E154: Rami Danni (escl rc auto) | F154: Rc auto | G154: Valori medi
B155: Totale Imprese Italiane | C155: =IFERROR(SUMIF(A6:A151, "Impresa vigilata", C6:C151), 0) -> 78120 | D155: =IFERROR(SUMIF(A6:A151, "Impresa vigilata", D6:D151), 0) -> 13754 | E155: =IFERROR(SUMIF(A6:A151, "Impresa vigilata", E6:E151), 0) -> 32217 | F155: =IFERROR(SUMIF(A6:A151, "Impresa vigilata", F6:F151), 0) -> 32149 | G155: =IFERROR(AVERAGEIF(A6:A151, "Impresa vigilata", G6:G151), 0) -> 1.667173913 | H155: =IFERROR(AVERAGEIF(A6:A151, "Impresa vigilata", H6:H151), 0) -> 0.1612195122 | I155: =IFERROR(AVERAGEIF(A6:A151, "Impresa vigilata", I6:I151), 0) -> 1.851363636 | J155: =IFERROR(AVERAGEIF(A6:A151, "Impresa vigilata", J6:J151), 0) -> 3.34175 | K155: =IFERROR(AVERAGEIF(A6:A151, "Impresa vigilata", K6:K151), 0) -> 4.571777778
B156: Totale Imprese Estere (UE) | C156: =IFERROR(SUMIF(A6:A151, "Impresa estera", C6:C151), 0) -> 18856 | D156: =IFERROR(SUMIF(A6:A151, "Impresa estera", D6:D151), 0) -> 3162 | E156: =IFERROR(SUMIF(A6:A151, "Impresa estera", E6:E151), 0) -> 6416 | F156: =IFERROR(SUMIF(A6:A151, "Impresa estera", F6:F151), 0) -> 9278 | G156: =IFERROR(AVERAGEIF(A6:A151, "Impresa estera", G6:G151), 0) -> 6.005294118 | H156: =IFERROR(AVERAGEIF(A6:A151, "Impresa estera", H6:H151), 0) -> 2.038125 | I156: =IFERROR(AVERAGEIF(A6:A151, "Impresa estera", I6:I151), 0) -> 4.515405405 | J156: =IFERROR(AVERAGEIF(A6:A151, "Impresa estera", J6:J151), 0) -> 10.45857143 | K156: =IFERROR(AVERAGEIF(A6:A151, "Impresa estera", K6:K151), 0) -> 5.930217391
B157: Totale complessivo | C157: =C155+C156 -> 96976 | D157: =D155+D156 -> 16916 | E157: 38633 | F157: 41427
A159: (1) - Imprese con sede legale in un Paese UE, operanti in Italia in regime di stabilimento o di libera prestazione dei servizi (ossia senza una sede stabile in Italia). Sono tenute alla comunicazione le sole imprese che ricevono nell'anno più di 20 reclami.
A160: (2) - Fonte premi: segnalazioni Solvency II/PTRIM, per le imprese in LPS sono quelli riportati nel documento tecnico all. 2 Reg. 24/2008.
A161: (3) - NA: Outlier non inserito nella media - per visualizzare il valore fare click sulla cella
A162: (4) - NA: dato non inserito nella media in quanto non significativo rispetto al valore dell'indicatore/condizionato da operazioni societarie infrannuali/ run off nel comparto
A163: Fonte: elaborazione prospetti informatici inviati dalle imprese all'IVASS ai sensi del Regolamento n. 24/2008 - segnalazioni Infostat al 14 aprile 2023.
